bitfinex-derivatives/quotes_ETHF0:USTF0_20250614
["timestamp","ask_amount","ask_price","bid_price","bid_amount"]
[1749866104098,3.8603,2556.9,2556.6,0.78188]
[1749866104292,1.75588327,2556.8,2556.7,0.78188]
[1749866104495,0.97402327,2556.8,2556.7,0.78188]
[1749866104798,3.98963,2556.9,2556.7,0.78186]
[1749866105398,0.78185,2556.8,2556.7,0.78186]
[1749866105707,0.78188,2556.7,2556.5,0.78192]
[1749866105906,0.78195,2556.5,2556.0,0.6344]
[1749866106112,0.00586602,2556.5,2556.4,0.78196]
[1749866106409,0.00586602,2556.5,2556.1,1.354]
[1749866106715,0.00586602,2556.5,2556.2,6.31]
[1749866106912,0.00586602,2556.5,2556.4,0.78197]
[1749866108008,0.00586602,2556.5,2556.4,7.09197]
[1749866111814,0.00586602,2556.5,2556.4,10.29977]
[1749866112115,0.00586602,2556.5,2556.4,7.09197]
[1749866116115,0.00586602,2556.5,2556.4,10.29977]
[1749866117018,0.00586602,2556.5,2556.4,3.98977]
[1749866117218,0.00586602,2556.5,2556.4,31.20297]
[1749866117515,0.00586602,2556.5,2556.4,34.41077]
[1749866118015,0.00586602,2556.5,2556.4,31.20297]
[1749866118213,0.00586602,2556.5,2556.4,0.78197]
[1749866118722,0.00586602,2556.5,2556.4,7.09197]
[1749866119215,0.00586602,2556.5,2556.4,7.74607]
[1749866119916,0.78780602,2556.5,2556.4,0.6541]
[1749866120214,0.00586602,2556.5,2556.4,7.74607]
[1749866120710,0.78780602,2556.5,2556.4,6.9641]
[1749866121113,1.76301113,2556.5,2556.4,6.9641]
[1749866122114,1.76301113,2556.5,2556.4,7.74607]
[1749866122309,1.76301113,2556.5,2556.4,6.9641]
[1749866122516,0.78197,2556.4,2556.3,6.31]
[1749866122715,2.41867511,2556.4,2556.3,7.092]
[1749866123016,1.75717511,2556.4,2556.3,6.31]
[1749866123717,0.78201,2556.3,2556.1,0.682]
[1749866123912,0.78199,2556.4,2556.3,0.782]
[1749866124217,1.76311191,2556.5,2556.2,6.31]
[1749866124418,0.97529589,2556.4,2556.3,0.782]
[1749866124914,0.00586602,2556.5,2556.4,0.78197]
[1749866125111,0.98095742,2556.5,2556.4,0.78197]
[1749866128319,1.76289742,2556.5,2556.4,0.78197]
[1749866128621,1.76291742,2556.5,2556.4,6.303]
[1749866128814,1.76291742,2556.5,2556.4,7.08497]
[1749866129821,0.78198,2556.4,2556.3,0.78199]
[1749866130016,0.78198,2556.4,2556.3,7.08499]
[1749866131118,1.45072602,2556.5,2556.4,0.78197]
[1749866131320,2.42627509,2556.5,2556.4,0.78197]
[1749866131713,2.42627509,2556.5,2556.4,7.08497]
[1749866132114,2.42627509,2556.5,2556.4,0.78197]
[1749866132321,2.42638355,2556.5,2556.4,7.08497]
[1749866132514,2.42638355,2556.5,2556.4,6.303]
[1749866132714,0.78197,2556.4,2556.3,0.78199]
[1749866132915,0.97565753,2556.4,2556.3,6.303]
[1749866133116,1.75764753,2556.4,2556.2,0.78201]
[1749866133314,0.97568383,2556.3,2556.2,0.78201]
[1749866133519,1.75768383,2556.3,2556.2,7.08501]
[1749866133920,1.75768383,2556.3,2556.2,0.78201]
[1749866134127,1.75768383,2556.3,2556.2,7.08501]
[1749866134324,0.97568383,2556.3,2556.1,0.682]
[1749866134532,3.9898,2556.3,2556.2,6.303]
[1749866134723,4.9662908,2556.3,2556.2,6.303]
[1749866134924,4.9662908,2556.3,2556.2,7.08503]
[1749866136227,4.9662908,2556.3,2556.2,6.303]
[1749866136922,4.9662908,2556.3,2556.2,7.08503]
[1749866142239,4.1842908,2556.3,2556.2,7.08503]
[1749866143238,4.9662908,2556.3,2556.2,6.303]
[1749866143439,4.1842908,2556.3,2556.2,7.08503]
[1749866143841,4.1842908,2556.3,2555.9,6.304]
[1749866144136,0.78209,2556.1,2556.0,0.78208]
[1749866144532,1.75839821,2556.1,2556.0,0.78208]
[1749866145336,0.7821,2556.0,2555.9,6.9682]
[1749866145534,1.4613,2556.0,2555.9,0.6642]
[1749866145733,2.43755218,2556.0,2555.9,6.9682]
[1749866145938,2.43755218,2556.0,2555.9,1.44633]
[1749866146140,2.43755218,2556.0,2555.9,6.9682]
[1749866146541,2.43755218,2556.0,2555.9,7.75033]
[1749866147134,2.43755218,2556.0,2555.9,6.9682]
[1749866147335,2.43755218,2556.0,2555.9,6.304]
[1749866147940,2.43755218,2556.0,2555.9,7.08613]
[1749866148442,0.78213,2555.9,2555.8,0.6327]
[1749866148635,0.78213,2555.9,2555.8,6.9367]
[1749866148839,0.78213,2555.9,2555.8,7.71886]
[1749866149443,0.78213,2555.9,2555.8,0.6327]
[1749866149741,1.7586019,2555.9,2555.8,0.78216]
[1749866149938,1.7586019,2555.9,2555.8,1.46576]
[1749866150744,0.9764619,2555.9,2555.8,1.46576]
[1749866150942,3.2078,2556.0,2555.9,0.78213]
[1749866151148,4.1842467,2556.0,2555.9,0.78213]
[1749866151446,0.9764467,2556.0,2555.9,0.78213]
[1749866153537,0.9764467,2556.0,2555.9,2.09213]
[1749866155648,3.2078,2556.3,2556.2,0.78204]
[1749866155847,4.18464951,2556.3,2556.2,0.78204]
[1749866156250,0.97684951,2556.3,2556.2,1.45124]
[1749866156845,1.75885951,2556.3,2556.2,1.45124]
[1749866157151,4.96665951,2556.3,2556.2,1.45124]
[1749866158855,4.18464951,2556.3,2556.2,1.45124]
[1749866160157,4.96665951,2556.3,2556.2,0.78204]
[1749866160757,1.75885951,2556.3,2556.2,0.78204]
[1749866161356,4.96665951,2556.3,2556.2,0.78204]
[1749866161658,4.18464951,2556.3,2556.2,0.78204]
[1749866163054,4.96665951,2556.3,2556.2,0.78204]
[1749866164361,4.18464951,2556.3,2556.2,0.78204]
[1749866165655,4.96665951,2556.3,2556.2,0.6683]
[1749866166156,4.96665951,2556.3,2556.2,1.45034]
[1749866166353,4.96665951,2556.3,2556.2,0.6683]
[1749866166553,9.18464951,2556.3,2555.9,0.78213]
[1749866166758,2.87684951,2556.2,2555.9,0.78213]
[1749866167057,0.7821,2556.0,2555.9,0.78213]
[1749866167260,1.75894951,2556.0,2555.9,0.78213]
[1749866167458,0.97684951,2556.0,2555.9,0.78213]
[1749866168551,3.2078,2556.3,2556.2,0.78204]
[1749866168754,4.18447929,2556.3,2556.2,0.78204]
[1749866169756,3.2078,2556.3,2556.2,0.78204]
[1749866169960,4.18437624,2556.3,2556.2,0.78204]
[1749866170662,4.18437624,2556.3,2556.2,7.05204]
[1749866171760,0.97657624,2556.3,2556.2,7.05204]
[1749866173164,0.97657624,2556.3,2556.2,0.78204]
[1749866173364,0.78204,2556.2,2556.1,8.34074]
[1749866173557,1.75861624,2556.2,2556.1,8.34074]
[1749866174056,0.97657624,2556.2,2556.1,8.34074]
[1749866177965,0.00586602,2556.5,2556.4,0.78197]
[1749866178167,0.98328916,2556.5,2556.4,0.78197]
[1749866184669,0.00586602,2556.5,2556.4,0.78197]
[1749866184963,0.00586602,2556.5,2556.4,2.04477]
[1749866186171,0.00586602,2556.5,2556.4,26.07277]
[1749866186667,0.98254588,2556.5,2556.4,32.32877]
[1749866187258,0.00586602,2556.5,2556.4,32.32877]
[1749866194588,3.2078,2556.9,2556.8,0.78185]
[1749866194879,4.18458662,2556.9,2556.8,0.78185]
[1749866196182,4.18458662,2556.9,2556.8,7.03885]
[1749866196474,3.2078,2556.9,2556.8,7.03885]
[1749866197280,4.18462029,2556.9,2556.8,7.03885]
[1749866199691,0.00586602,2557.1,2557.0,0.78179]
[1749866199991,0.00586602,2557.1,2557.0,24.80379]
[1749866206300,0.00586602,2557.1,2557.0,26.06199]
[1749866207800,0.6317,2557.5,2557.4,0.78167]
[1749866208004,1.6081917,2557.5,2557.4,31.05667]
[1749866208603,0.9764917,2557.5,2557.4,31.05667]
[1749866208800,0.00586602,2557.7,2557.6,0.78161]
[1749866209098,0.78744602,2557.7,2557.6,30.274]
[1749866209299,0.78164,2557.5,2557.4,3.2078]
[1749866210007,0.78164,2557.5,2557.4,3.98946]
[1749866210008,2.05074,2557.5,2557.4,3.98946]
[1749866211408,2.05074,2557.5,2557.4,0.78166]
[1749866212006,1.2691,2557.5,2557.4,0.78166]
[1749866212204,0.685,2557.6,2557.5,0.78163]
[1749866212610,0.685,2557.6,2557.5,28.00643]
[1749866213313,0.00586602,2557.7,2557.6,0.7816]
[1749866213510,0.00586602,2557.7,2557.6,7.0376]
[1749866216714,0.00586602,2557.7,2557.6,31.0506]
[1749866219612,0.78743602,2557.7,2557.6,31.0506]
[1749866220214,0.78743602,2557.7,2557.6,30.269]
[1749866220513,0.78173,2557.2,2557.1,23.651]
[1749866220713,0.78171,2557.3,2557.1,53.917]
[1749866220911,0.78171,2557.3,2557.2,0.78169]
[1749866221116,1.75198078,2557.3,2557.2,0.78169]
[1749866221307,0.78173,2557.2,2557.1,24.43273]
[1749866221508,2.37820078,2557.2,2557.1,54.69873]
[1749866222311,2.37820078,2557.2,2557.1,53.917]
[1749866223315,2.37820078,2557.2,2557.1,23.651]
[1749866223618,2.37820078,2557.2,2557.1,53.917]
[1749866225215,2.37820078,2557.2,2557.1,23.651]
[1749866225417,2.37820078,2557.2,2557.1,53.917]
[1749866225613,0.78188,2556.7,2556.6,3.21366602]
[1749866225819,0.78188,2556.7,2556.6,33.47966602]
[1749866226905,1.2711,2557.1,2556.8,0.78184]
[1749866227111,0.78185,2556.9,2556.8,0.78184]
[1749866227415,1.75332889,2556.9,2556.8,0.78184]
[1749866227614,1.40794,2557.2,2557.1,0.78176]
[1749866227815,2.37931514,2557.2,2557.1,0.78176]
[1749866228018,2.37928707,2557.2,2557.1,0.78176]
[1749866229621,0.78176,2557.1,2557.0,1.46517]
[1749866229822,1.75310707,2557.1,2557.0,7.71817]
[1749866230726,0.97134707,2557.1,2557.0,7.71817]
[1749866231023,1.75310707,2557.1,2557.0,7.71817]
[1749866231415,1.75310707,2557.1,2557.0,6.253]
[1749866232722,1.75353575,2557.1,2557.0,6.253]
[1749866233116,3.05933575,2557.1,2557.0,6.253]
[1749866234022,2.27757575,2557.1,2556.7,1.43326]
[1749866234219,0.78185,2556.8,2556.7,31.70028]
[1749866237220,0.78184,2556.9,2556.8,0.78183]
[1749866237725,1.75308542,2556.9,2556.8,0.78183]
[1749866239628,1.75308542,2556.9,2556.8,0.78185]
[1749866241028,1.7531949,2556.9,2556.8,0.78185]
[1749866241226,1.75319228,2556.9,2556.8,0.78185]
[1749866243840,0.78184,2556.9,2556.8,0.78185]
[1749866244327,0.78185,2556.8,2556.7,31.70025]
[1749866245429,3.2078,2557.1,2556.7,30.9184]
[1749866245735,0.78182,2557.0,2556.9,0.7818]
[1749866245936,0.78182,2557.0,2556.9,24.7948]
[1749866246132,1.75357988,2557.0,2556.9,24.7948]
[1749866246431,1.75357988,2557.0,2556.9,25.4494]
[1749866246733,1.7539272,2557.0,2556.9,25.4494]
[1749866247832,1.7538972,2557.0,2556.9,25.4494]
[1749866248026,0.9721072,2557.0,2556.9,26.7931]
[1749866249527,1.7538972,2557.0,2556.9,1.9983]
[1749866249728,1.7538972,2557.0,2556.9,30.9186]
[1749866249930,1.7538972,2557.0,2556.9,0.6546]
[1749866251035,0.78179,2557.0,2556.9,0.6546]
[1749866251539,0.78179,2557.0,2556.9,1.43642]
[1749866251929,0.78179,2557.0,2556.9,0.6546]
[1749866252238,1.75571273,2557.0,2556.9,0.6546]
[1749866252429,1.75571273,2557.0,2556.9,1.43642]
[1749866253431,0.97392273,2557.0,2556.9,1.43642]
[1749866253735,1.75571273,2557.0,2556.9,32.99462]
[1749866254244,0.97392273,2557.0,2556.9,32.99462]
[1749866255040,0.78177,2557.1,2557.0,0.78179]
[1749866255234,1.75527504,2557.1,2557.0,0.78179]
[1749866256844,0.78179,2557.0,2556.9,32.9946]
[1749866257035,1.75529504,2557.0,2556.9,31.6984]
[1749866257340,1.75529504,2557.0,2556.9,31.69842]
[1749866259243,1.75529504,2557.0,2556.9,30.9166]
[1749866259637,1.75529504,2557.0,2556.9,25.44642]
[1749866261445,1.75529504,2557.0,2556.9,24.6646]
[1749866262544,1.75529504,2557.0,2556.9,25.44642]
[1749866264143,0.97350504,2557.0,2556.9,25.44642]
[1749866264345,0.6253,2557.4,2556.9,25.44642]
[1749866264346,0.973517,2557.2,2556.9,26.70632]
[1749866264549,0.78179,2557.0,2556.9,26.70632]
[1749866264847,1.755307,2557.0,2556.9,26.70632]
[1749866265354,0.78182,2556.9,2556.8,24.79083]
[1749866265541,1.75540572,2556.9,2556.8,0.78184]
[1749866265742,1.75540572,2556.9,2556.8,24.78984]
[1749866266047,0.97356572,2556.9,2556.8,24.78984]
[1749866266446,0.97356572,2556.9,2556.8,26.13624]
[1749866266744,1.75538572,2556.9,2556.8,26.13624]
[1749866267449,0.97356572,2556.9,2556.8,26.13624]
[1749866267849,1.75538572,2556.9,2556.8,26.13624]
[1749866268451,0.97356572,2556.9,2556.8,26.13624]
[1749866269658,1.75538572,2556.9,2556.8,26.13624]
[1749866269855,0.97356572,2556.9,2556.8,26.13624]
[1749866270954,1.75538572,2556.9,2556.8,26.13624]
[1749866273559,1.75538572,2556.9,2556.8,25.3544]
[1749866273763,1.75538572,2556.9,2556.8,24.78985]
[1749866274260,1.75538572,2556.9,2556.8,26.14595]
[1749866276161,0.97356572,2556.9,2556.8,26.14595]
[1749866277464,0.97356572,2556.9,2556.8,32.38995]
[1749866278568,1.75538572,2556.9,2556.8,32.38995]
[1749866279968,0.97356572,2556.9,2556.8,32.38995]
[1749866282372,0.97356572,2556.9,2556.7,1.3247]
[1749866282373,0.78185,2556.8,2556.7,7.5707]
[1749866282671,0.78185,2556.8,2556.7,32.35658]
[1749866282672,0.97356572,2556.8,2556.7,32.35658]
[1749866283965,0.97494989,2556.9,2556.7,37.8828]
[1749866284162,3.2078,2557.3,2557.2,0.78173]
[1749866284369,1.75654555,2557.3,2557.2,31.0307]
[1749866284667,0.97484555,2557.3,2557.2,31.0307]
[1749866284866,1.75654555,2557.3,2557.2,31.0307]
[1749866285565,1.75654555,2557.3,2557.2,31.6743]
[1749866286368,1.75654555,2557.3,2557.2,30.8926]
[1749866286760,0.97484555,2557.3,2557.2,34.1004]
[1749866286965,1.26106602,2557.7,2557.6,0.7816]
[1749866286966,0.00586602,2557.7,2557.6,0.7816]
[1749866287174,3.00362598,2558.3,2558.0,0.78148]
[1749866287370,0.6604,2558.3,2558.2,3.2078]
[1749866287572,4.24432598,2558.8,2558.3,0.78138]
[1749866287768,1.9156,2558.7,2558.5,3.2078]
[1749866288266,0.6604,2558.7,2558.5,3.2078]
[1749866288461,0.00586602,2558.9,2558.5,27.2098]
[1749866288767,0.00586602,2558.9,2558.6,0.6502]
[1749866289170,0.78707602,2558.9,2558.6,0.6502]
[1749866289469,2.04227602,2558.9,2558.6,0.6502]
[1749866290378,1.26106602,2558.9,2558.6,0.6502]
[1749866290678,0.00586602,2558.9,2558.8,3.98904]
[1749866290977,0.00586602,2558.9,2558.7,23.997]
[1749866291178,0.00586602,2558.9,2558.7,24.77824]
[1749866291675,0.00586602,2558.9,2558.8,0.78124]
[1749866291872,0.00586602,2558.9,2558.8,3.98904]
[1749866292273,0.00586602,2558.9,2558.8,5.96104]
[1749866294572,0.6741,2559.3,2559.2,0.78111]
[1749866294776,4.5201,2559.6,2559.5,0.78102]
[1749866294978,3.2078,2559.6,2559.5,0.78102]
[1749866296673,0.6292,2559.7,2559.6,0.78099]
[1749866298771,0.00586602,2559.8,2559.7,0.78096]
[1749866299176,0.00586602,2559.8,2559.7,2.05546]
[1749866300875,0.6668,2560.2,2560.1,0.78084]
[1749866301786,6.242,2560.4,2560.3,0.78078]
[1749866302188,0.6449,2560.5,2560.4,0.78075]
[1749866302683,4.54106602,2560.6,2560.1,1.95793602]
[1749866302684,3.21366602,2560.6,2560.5,0.78072]
[1749866303276,0.00586602,2560.6,2560.5,0.78072]
[1749866303488,0.00586602,2560.6,2560.5,2.01712]
[1749866304287,3.2078,2561.0,2560.9,0.7806]
[1749866304485,3.98837,2561.0,2560.9,0.7806]
[1749866304679,8.2078,2561.0,2560.4,3.2078]
[1749866304880,8.2078,2561.0,2560.3,0.78077]
[1749866304881,0.78076,2560.4,2560.3,0.78077]
[1749866305092,0.78071,2560.6,2560.1,33.43166602]
[1749866305279,0.00387176,2560.6,2560.5,0.78072]
[1749866305588,1.30697176,2560.6,2560.5,0.78072]
[1749866305790,1.99007176,2560.6,2560.5,0.78072]
[1749866305977,2.77076176,2560.6,2560.5,0.78072]
[1749866306179,1.99007176,2560.6,2560.5,0.78072]
[1749866307686,0.68697176,2560.6,2560.5,0.78072]
[1749866312883,0.00387176,2560.6,2560.5,0.78072]
[1749866313082,0.00387176,2560.6,2560.5,1.42912]
[1749866314894,0.00387176,2560.6,2560.5,2.69102]
[1749866316895,3.2078,2561.0,2560.9,0.7806]
[1749866317687,3.2078,2561.0,2560.9,1.4034]
[1749866319395,4.16719972,2561.0,2560.9,1.4034]
[1749866320099,0.95939972,2561.0,2560.9,1.4034]
[1749866320295,0.6531,2561.4,2561.3,0.78047]
[1749866320802,1.61219839,2561.4,2561.3,0.78047]
[1749866321395,1.61219839,2561.4,2561.0,5.15915]
[1749866321396,1.9307,2561.7,2561.6,0.78038]
[1749866321595,1.9307,2561.7,2561.5,0.78039]
[1749866321596,3.67123027,2561.7,2561.5,0.78039]
[1749866321792,2.22526027,2561.6,2561.5,0.78039]
[1749866322298,3.00566027,2561.6,2561.5,0.78041]
[1749866322498,2.22526027,2561.6,2561.5,0.78041]
[1749866322905,0.96016027,2561.6,2561.5,0.78041]
[1749866325205,1.74054027,2561.6,2561.5,0.78041]
[1749866325906,0.96016027,2561.6,2561.5,0.78041]
[1749866329006,0.96016027,2561.6,2561.5,2.11471]
[1749866331607,0.96016027,2561.6,2561.4,1.45108602]
[1749866331802,1.74057027,2561.5,2561.4,0.67066602]
[1749866332004,1.74057027,2561.5,2561.4,0.78630602]
[1749866333908,1.74057027,2561.5,2561.4,0.00586602]
[1749866334303,6.74057027,2561.5,2561.4,0.00586602]
[1749866334499,6.74057027,2561.5,2560.6,4.5397]
[1749866334500,0.78066,2560.7,2560.6,4.5397]
[1749866334700,0.78064,2560.8,2560.7,0.78065]
[1749866335002,0.78066,2560.7,2560.6,5.32037]
[1749866335202,1.74163384,2560.7,2560.6,5.32037]
[1749866335410,0.96097384,2560.7,2560.6,5.32037]
[1749866335805,1.74163384,2560.7,2560.6,5.32037]
[1749866336804,1.74163384,2560.7,2560.6,3.2078]
[1749866337707,0.78072,2560.5,2560.4,0.00586602]
[1749866338209,1.74169384,2560.5,2560.4,0.00586602]
[1749866339104,3.08769384,2560.5,2560.4,0.00586602]
[1749866340209,3.08769384,2560.5,2559.9,0.6606]
[1749866340210,0.78087,2560.0,2559.9,0.6606]
[1749866340402,0.78096,2559.7,2559.6,0.6316]
[1749866340607,0.78099,2559.6,2559.5,3.2078]
[1749866341301,1.74298308,2559.6,2559.5,3.2078]
[1749866343519,0.78099,2559.6,2559.5,3.2078]
[1749866344319,0.78095,2559.8,2559.5,3.2078]
[1749866344613,3.8789,2559.9,2559.5,3.2078]
[1749866344614,0.78096,2559.7,2559.5,3.2078]
[1749866344819,3.8789,2559.9,2559.5,3.98881]
[1749866345211,0.78099,2559.6,2559.5,3.98881]
[1749866345717,0.78099,2559.6,2559.5,3.2078]
[1749866345910,0.78099,2559.6,2559.5,3.98882]
[1749866346113,0.78105,2559.4,2559.3,0.66646602]
[1749866346919,0.78105,2559.4,2559.3,0.00586602]
[1749866347622,0.00586602,2559.6,2559.3,0.78693602]
[1749866347817,0.78105,2559.4,2559.3,0.00586602]
[1749866353136,0.78118,2559.0,2558.9,3.98901]
[1749866353325,1.9833,2559.3,2558.9,3.2078]
[1749866353525,0.78118,2559.0,2558.9,3.98898]
[1749866353732,0.78118,2559.0,2558.9,3.2078]
[1749866353926,0.78124,2558.8,2558.7,2.05047]
[1749866355431,0.78124,2558.8,2558.7,1.2692]
[1749866355930,0.78124,2558.8,2558.7,2.05047]
[1749866356235,0.78124,2558.8,2558.7,1.2692]
[1749866360327,0.7813,2558.6,2558.5,3.21366602]
[1749866363328,0.7813,2558.6,2558.5,5.34419602]
[1749866364043,0.7813,2558.6,2558.5,2.13639602]
[1749866364840,0.7813,2558.6,2558.5,1.35506602]
[1749866365934,0.7813,2558.6,2558.5,0.00586602]
[1749866366640,1.7446277,2558.6,2558.5,0.00586602]
[1749866371841,1.7446277,2558.6,2558.5,3.21366602]
[1749866372343,0.9633277,2558.6,2558.5,3.99499602]
[1749866372643,1.95274,2559.3,2558.5,3.99499602]
[1749866372644,7.01512,2559.2,2559.0,0.78116]
[1749866372842,1.74592693,2559.1,2559.0,3.2078]
[1749866373144,1.74592693,2559.1,2559.0,3.872]
[1749866373340,0.96477693,2559.1,2559.0,4.65318]
[1749866373742,1.74592693,2559.1,2559.0,3.872]
[1749866374447,0.96477693,2559.1,2559.0,4.65318]
[1749866374944,1.74592693,2559.1,2559.0,4.65318]
[1749866375444,0.96477693,2559.1,2559.0,4.65318]
[1749866378046,1.74592693,2559.1,2559.0,0.6642]
[1749866378447,0.96477693,2559.1,2559.0,1.44538]
[1749866379045,1.74592693,2559.1,2559.0,1.44538]
[1749866379344,1.74592693,2559.1,2559.0,0.6642]
[1749866379643,0.78124,2558.8,2558.7,3.2078]
[1749866379844,1.74601693,2558.8,2558.7,3.2078]
[1749866380842,0.78127,2558.7,2558.6,7.63909]
[1749866381042,1.74604693,2558.7,2558.6,8.91559]
[1749866381948,0.96477693,2558.7,2558.6,8.91559]
[1749866382134,0.96501164,2558.9,2558.6,1.9003]
[1749866382341,1.95275,2559.3,2558.8,3.2078]
[1749866382644,0.96509745,2559.2,2558.8,3.2078]
[1749866382845,0.96509745,2559.1,2558.8,3.2078]
[1749866383046,0.78121,2558.9,2558.8,3.98904]
[1749866383249,1.74630745,2558.9,2558.8,3.98904]
[1749866383548,1.74630745,2558.9,2558.8,3.2078]
[1749866383743,0.78127,2558.7,2558.6,0.6238]
[1749866383940,1.74636745,2558.7,2558.6,0.6238]
[1749866386846,1.74636745,2558.7,2558.6,1.8974]
[1749866387044,1.74636745,2558.7,2558.6,2.6787]
[1749866387250,0.96509745,2558.7,2558.6,2.6787]
[1749866387552,0.78115,2559.1,2559.0,0.78116]
[1749866387852,0.78115,2559.1,2559.0,3.2078]
[1749866388253,1.74652011,2559.1,2559.0,3.2078]
[1749866388656,0.78121,2558.9,2558.8,1.2458]
[1749866389051,1.74658011,2558.9,2558.8,1.2458]
[1749866389349,0.78124,2558.8,2558.7,3.8401]
[1749866389549,1.74661011,2558.8,2558.7,3.8401]
[1749866390655,0.78127,2558.7,2558.6,0.6238]
[1749866390952,1.74664011,2558.7,2558.6,0.6238]
[1749866392251,0.96537011,2558.7,2558.6,4.6129]
[1749866392451,0.96538507,2558.9,2558.6,3.8316]
[1749866392751,0.96538507,2558.8,2558.7,0.78127]
[1749866392959,0.78119,2559.0,2558.8,0.78121]
[1749866393156,0.96538567,2558.9,2558.8,0.78121]
[1749866393454,1.74659567,2558.9,2558.8,3.2078]
[1749866394054,1.74659567,2558.9,2558.8,4.5534]
[1749866396754,0.78127,2558.7,2558.6,0.6238]
[1749866397251,1.74690486,2558.7,2558.6,0.6238]
[1749866397456,0.96563486,2558.7,2558.6,1.4051]
[1749866397758,0.96563486,2558.7,2558.6,0.6238]
[1749866397759,1.74690486,2558.7,2558.6,0.6238]
[1749866401160,0.7813,2558.6,2558.5,0.00586602]
[1749866401354,1.74693486,2558.6,2558.5,0.00586602]
[1749866402161,0.96563486,2558.6,2558.5,0.78719602]
[1749866402349,4.28314019,2559.1,2558.6,0.78127]
[1749866402553,0.78127,2558.7,2558.6,3.8592]
[1749866402755,0.78121,2558.9,2558.8,0.78124]
[1749866403067,0.78125,2558.8,2558.7,0.78126]
[1749866403358,1.74796216,2558.8,2558.7,0.78126]
[1749866403560,0.96671216,2558.8,2558.7,0.78126]
[1749866403761,1.74797216,2558.8,2558.6,5.1143]
[1749866403958,0.96671216,2558.7,2558.6,5.89558]
[1749866404461,1.74798216,2558.7,2558.6,5.89558]
[1749866404651,0.96671216,2558.7,2558.6,5.89558]
[1749866404854,0.78127,2558.7,2558.6,5.89558]
[1749866405354,1.74798216,2558.7,2558.6,5.89558]
[1749866405767,1.74798216,2558.7,2558.6,3.2078]
[1749866405959,0.7813,2558.6,2558.5,0.00586602]
[1749866406156,0.96671216,2558.6,2558.5,0.78719602]
[1749866406460,0.96742492,2558.7,2558.6,0.7813]
[1749866406662,0.78127,2558.7,2558.6,3.8446]
[1749866406863,1.74876405,2558.7,2558.6,3.8446]
[1749866407361,0.7813,2558.6,2558.5,0.00586602]
[1749866407562,1.74879405,2558.6,2558.5,0.00586602]
[1749866407862,0.96749405,2558.6,2558.5,0.78719602]
[1749866408162,0.78122,2558.9,2558.7,0.78124]
[1749866408354,0.78124,2558.8,2558.7,3.98904]
[1749866408553,1.74875569,2558.8,2558.7,3.98904]
[1749866409765,0.7813,2558.6,2558.5,2.02457602]
[1749866410058,0.78129,2558.7,2558.6,0.7813]
[1749866410457,1.74913723,2558.7,2558.6,0.7813]
[1749866410965,0.7813,2558.6,2558.5,8.25558602]
[1749866411164,1.74919758,2558.6,2558.5,0.00586602]
[1749866411360,3.79619758,2558.6,2558.5,0.00586602]
[1749866412069,3.79611141,2558.6,2558.5,0.00586602]
[1749866412967,3.01481141,2558.6,2558.5,0.78719602]
[1749866413164,0.96781141,2558.6,2558.5,0.78719602]
[1749866413762,1.74911141,2558.6,2558.5,0.78719602]
[1749866414469,0.96781141,2558.6,2558.5,0.78719602]
[1749866415070,1.74911141,2558.6,2558.5,0.00586602]
[1749866416072,1.74911141,2558.6,2558.5,0.78719602]
[1749866416274,0.96781141,2558.6,2558.5,0.78719602]
[1749866417671,3.01694019,2559.1,2558.7,0.78125]
[1749866417672,0.78124,2558.8,2558.7,0.78125]
[1749866417972,0.78124,2558.8,2558.7,3.98905]
[1749866418175,0.96774662,2558.8,2558.7,3.98907]
[1749866418370,0.78121,2558.9,2558.8,0.78124]
[1749866418563,1.74888917,2558.9,2558.8,1.41994]
[1749866418967,1.74888917,2558.9,2558.8,0.6387]
[1749866419970,1.74888917,2558.9,2558.8,1.41994]
[1749866420368,1.74888917,2558.9,2558.8,0.6387]
[1749866421577,1.74888917,2558.9,2558.8,1.41994]
[1749866422075,0.96767917,2558.9,2558.8,1.41994]
[1749866422276,0.96767917,2558.9,2558.8,2.76234]
[1749866422778,1.74888917,2558.9,2558.8,2.76234]
[1749866423077,0.96767917,2558.9,2558.8,2.76234]
[1749866423878,0.78121,2558.9,2558.8,2.76232]
[1749866424073,0.78124,2558.8,2558.7,3.2078]
[1749866424273,0.7813,2558.6,2558.5,6.82166602]
[1749866424572,0.7813,2558.6,2558.5,0.59066602]
[1749866424778,1.74874486,2558.6,2558.5,0.59066602]
[1749866424970,1.74874486,2558.6,2558.5,1.37199602]
[1749866425173,1.74874486,2558.6,2558.5,0.78719602]
[1749866425978,1.74874486,2558.6,2558.5,0.00586602]
[1749866426381,0.96744486,2558.6,2558.5,0.78719602]
[1749866426577,1.74874486,2558.6,2558.5,0.78719602]
[1749866426778,0.96744486,2558.6,2558.5,0.78719602]
[1749866427379,1.74874486,2558.6,2558.5,0.78719602]
[1749866427581,0.96744486,2558.6,2558.5,0.78719602]
[1749866427880,0.96744486,2558.6,2558.5,1.45429602]
[1749866428682,0.9676926,2558.7,2558.5,0.67296602]
[1749866428883,0.6424,2558.8,2558.5,2.73999602]
[1749866428884,0.9676926,2558.6,2558.5,2.73999602]
[1749866430783,1.7489926,2558.6,2558.5,2.73999602]
[1749866430986,1.7489926,2558.6,2558.5,1.45429602]
[1749866431481,0.9676926,2558.6,2558.5,1.45429602]
[1749866433185,1.7489926,2558.6,2558.5,1.45429602]
[1749866433384,0.9676926,2558.6,2558.5,1.45429602]
[1749866435385,1.7489926,2558.6,2558.5,1.45429602]
[1749866435589,0.9676926,2558.6,2558.5,1.45429602]
[1749866436586,1.7489926,2558.6,2558.5,1.45429602]
[1749866437586,0.9676926,2558.6,2558.5,1.45429602]
[1749866439586,1.7489926,2558.6,2558.5,1.45429602]
[1749866443592,0.9676926,2558.6,2558.5,1.45429602]
[1749866445098,1.7489926,2558.6,2558.5,1.45429602]
[1749866448293,0.9676926,2558.6,2558.5,1.45429602]
[1749866451695,1.7489926,2558.6,2558.5,1.45429602]
[1749866453495,0.9676926,2558.6,2558.5,1.45429602]
[1749866454689,0.9676926,2558.6,2558.5,2.77139602]
[1749866457298,0.9676926,2558.6,2558.5,1.45429602]